fUST/lending_fUST_20250329
["ID","MTS","AMOUNT","RATE_DAILY","PERIOD"]
[356798888,1743219039746,-1266.69,0.00024657,2]
[356798889,1743219039756,-22061.58,0.00024657,2]
[356798890,1743219039765,-548.47325142,0.00024657,2]
[356798891,1743219039775,-500.0,0.00024657,2]
[356798892,1743219039785,-500.0,0.00024657,2]
[356798893,1743219039796,-1464.18,0.00024657,2]
[356798894,1743219039806,-500.0,0.00024657,2]
[356798895,1743219039816,-1355.23,0.00024657,2]
[356798896,1743219039825,-4195.85,0.00024657,2]
[356798897,1743219039836,-853.82,0.00024657,2]
[356798898,1743219039847,-500.0,0.00024657,2]
[356798899,1743219039857,-500.0,0.00024657,2]
[356798900,1743219039866,-599.3,0.00024657,2]
[356798901,1743219039877,-20910.6,0.00024657,2]
[356798902,1743219039891,-503.57,0.00024657,2]
[356798903,1743219039901,-502.11847544,0.00024657,2]
[356798904,1743219039912,-1190.37,0.00024657,2]
[356798905,1743219039922,-10353.36,0.00024657,2]
[356798906,1743219039932,-731.74,0.00024657,2]
[356798907,1743219039942,-617.86,0.00024657,2]
[356798908,1743219039953,-500.0,0.00024657,2]
[356798909,1743219039964,-500.0,0.00024657,2]
[356798910,1743219039975,-739.33,0.00024657,2]
[356798911,1743219039985,-500.0,0.00024657,2]
[356798912,1743219039994,-500.0,0.00024657,2]
[356798913,1743219040004,-1073.93,0.00024657,2]
[356798914,1743219040014,-500.0,0.00024657,2]
[356798915,1743219040023,-500.0,0.00024657,2]
[356798916,1743219040033,-500.0,0.00024657,2]
[356798917,1743219040042,-500.0,0.00024657,2]
[356798918,1743219040053,-744.58,0.00024657,2]
[356798919,1743219040063,-3939.45,0.00024657,2]
[356798920,1743219040073,-1862.98,0.00024657,2]
[356798921,1743219040083,-500.0,0.00024657,2]
[356798922,1743219040092,-500.0,0.00024657,2]
[356798923,1743219040102,-500.0,0.00024657,2]
[356798924,1743219040112,-3275.0,0.00024657,2]
[356798925,1743219040122,-1311.03,0.00024657,2]
[356798926,1743219040131,-500.0,0.00024657,2]
[356798927,1743219040141,-500.0,0.00024657,2]
[356798928,1743219040151,-500.0,0.00024657,2]
[356798929,1743219040161,-975.51,0.00024657,2]
[356798931,1743219040170,-547.59724119,0.00024657,2]
[356798932,1743219040180,-500.0,0.00024657,2]
[356798933,1743219040190,-507.42,0.00024657,2]
[356798934,1743219040200,-1724.43,0.00024657,2]
[356798935,1743219040209,-691.82,0.00024657,2]
[356798936,1743219040219,-2761.07,0.00024657,2]
[356798937,1743219040229,-975.57,0.00024657,2]
[356798938,1743219040238,-500.0,0.00024657,2]
[356798939,1743219040248,-24770.87,0.00024657,2]
[356798940,1743219040257,-500.0,0.00024657,2]
[356798941,1743219040267,-500.0,0.00024657,2]
[356798942,1743219040277,-500.0,0.00024657,2]
[356798943,1743219040287,-500.0,0.00024657,2]
[356798944,1743219040297,-500.0,0.00024657,2]
[356798945,1743219040307,-581.72297805,0.00024657,2]
[356798946,1743219040316,-500.0,0.00024657,2]
[356798947,1743219040325,-1202.73,0.00024657,2]
[356798948,1743219040336,-11511.36,0.00024657,2]
[356798949,1743219040345,-1571.36,0.00024657,2]
[356798950,1743219040355,-1000.0,0.00024657,2]
[356798951,1743219040365,-7737.9,0.00024657,2]
[356798952,1743219040374,-1094.97,0.00024657,2]
[356798953,1743219040384,-500.0,0.00024657,2]
[356798954,1743219040393,-1205.88,0.00024657,2]
[356798955,1743219040402,-500.0,0.00024657,2]
[356798956,1743219040411,-504.77531965,0.00024657,2]
[356798958,1743219040420,-500.0,0.00024657,2]
[356798959,1743219040430,-536.30800253,0.00024657,2]
[356798961,1743219040440,-151.0,0.00024657,7]
[356798962,1743219040449,-500.0,0.00024657,2]
[356798963,1743219040459,-500.0,0.00024657,2]
[356798964,1743219040469,-151.0,0.00024657,2]
[356798965,1743219040478,-721.94,0.00024657,2]
[356798966,1743219040488,-151.0,0.00024657,2]
[356798967,1743219040497,-151.0,0.00024657,2]
[356798968,1743219040507,-664.48,0.00024657,2]
[356798969,1743219040516,-641.1,0.00024657,2]
[356798970,1743219040527,-500.0,0.00024657,2]
[356798971,1743219040536,-227.683777,0.00024657,2]
[356798972,1743219040547,-1792.88,0.00024657,2]
[356798973,1743219040557,-524.10479436,0.00024657,2]
[356798974,1743219040567,-500.0,0.00024657,2]
[356798975,1743219040578,-831.18,0.00024657,2]
[356798976,1743219040588,-168.1754602,0.00024657,2]
[356798982,1743219041398,-500.0,0.00024656,2]
[356798983,1743219041408,-500.0,0.00024656,2]
[356798984,1743219041417,-500.0,0.00024656,2]
[356798985,1743219041427,-279.09067739,0.00024656,2]
[356798992,1743219043661,-220.90932261,0.00024656,2]
[356798993,1743219043671,-500.0,0.00024656,2]
[356798994,1743219043680,-500.0,0.00024656,2]
[356798995,1743219043690,-500.0,0.00024656,2]
[356798996,1743219043699,-383.71736877,0.00024656,2]
[356798997,1743219043723,-116.28263123,0.00024656,2]
[356798998,1743219043732,-500.0,0.00024656,2]
[356798999,1743219043741,-500.0,0.00024656,2]
[356799000,1743219043751,-500.0,0.00024656,2]
[356799001,1743219043760,-500.0,0.00024656,2]
[356799002,1743219043770,-500.0,0.00024656,2]
[356799003,1743219043779,-500.0,0.00024656,2]
[356799004,1743219043789,-169.70435084,0.00024656,2]
[356799005,1743219043801,-330.29564916,0.00024656,2]
[356799006,1743219043810,-500.0,0.00024656,2]
[356799007,1743219043820,-188.64558498,0.00024656,2]
[356799014,1743219046625,-311.35441502,0.00024656,2]
[356799015,1743219046635,-500.0,0.00024656,2]
[356799016,1743219046645,-188.76619751,0.00024656,2]
[356799017,1743219134413,-151.0,0.00023528,2]
[356799018,1743219139239,-152.86131706,0.00023528,2]
[356799019,1743219246969,170.2095421,0.00013699,2]
[356799029,1743219937130,-224.20432256,0.00022237,2]
[356799030,1743219950091,-1114.78108871,0.00022237,2]
[356799031,1743220025094,-5206.90353783,0.00022237,2]
[356799032,1743220025116,-181.7339929,0.00022662,2]
[356799033,1743220025139,-186.53187125,0.00022961,2]
[356799034,1743220025164,-300.0,0.00023049,2]
[356799035,1743220025184,-500.0,0.0002305,2]
[356799036,1743220025206,-500.0,0.0002305,2]
[356799037,1743220025227,-500.0,0.0002305,2]
[356799038,1743220025248,-500.0,0.0002305,2]
[356799039,1743220025268,-351.54,0.00023051,3]
[356799040,1743220025516,-175.77,0.00023051,3]
[356799041,1743220025537,-500.0,0.00023059,2]
[356799042,1743220025558,-177.6154376,0.00023059,2]
[356799043,1743220025578,-500.0,0.00023059,2]
[356799044,1743220025601,-607.45926272,0.00023059,2]
[356799045,1743220025622,-500.0,0.00023059,2]
[356799046,1743220025643,-500.0,0.00023059,2]
[356799047,1743220025666,-607.45926272,0.00023059,2]
[356799048,1743220025686,-152.60250017,0.00023059,2]
[356799049,1743220025706,-500.0,0.00023059,2]
[356799050,1743220025727,-500.0,0.00023059,2]
[356799051,1743220025751,-607.45926272,0.00023059,2]
[356799052,1743220025771,-606.12238736,0.00023059,2]
[356799053,1743220025795,-607.45926272,0.00023059,2]
[356799054,1743220025817,-500.0,0.00023059,2]
[356799055,1743220025838,-500.0,0.00023059,2]
[356799056,1743220025860,-500.0,0.00023059,2]
[356799057,1743220025883,-607.45926272,0.00023059,2]
[356799058,1743220025904,-541.69471791,0.00023059,2]
[356799059,1743220025925,-500.0,0.00023059,2]
[356799060,1743220025948,-607.45926272,0.00023059,2]
[356799061,1743220025971,-607.45926272,0.00023059,2]
[356799062,1743220025993,-500.0,0.00023059,2]
[356799063,1743220026015,-607.45926272,0.00023059,2]
[356799064,1743220026039,-607.45926272,0.00023059,2]
[356799065,1743220026060,-500.0,0.00023059,2]
[356799066,1743220026083,-607.45926272,0.00023059,2]
[356799067,1743220026104,-500.0,0.00023059,2]
[356799068,1743220026127,-607.45926272,0.00023059,2]
[356799069,1743220026149,-228.10962637,0.00023059,2]
[356799070,1743220026172,-500.0,0.00023059,2]
[356799071,1743220026195,-607.45926272,0.00023059,2]
[356799072,1743220026220,-607.45926272,0.00023059,2]
[356799073,1743220026242,-500.0,0.00023059,2]
[356799074,1743220026266,-607.45926272,0.00023059,2]
[356799075,1743220026290,-500.0,0.00023059,2]
[356799076,1743220026312,-607.45926272,0.00023059,2]
[356799077,1743220026335,-607.45926272,0.00023059,2]
[356799078,1743220026357,-500.0,0.00023059,2]
[356799079,1743220026380,-607.45926272,0.00023059,2]
[356799080,1743220026403,-607.45926272,0.00023059,2]
[356799081,1743220026424,-500.0,0.00023059,2]
[356799082,1743220026447,-607.45926272,0.00023059,2]
[356799083,1743220026468,-500.0,0.00023059,2]
[356799084,1743220026491,-607.45926272,0.00023059,2]
[356799085,1743220026513,-607.45926272,0.00023059,2]
[356799086,1743220026536,-607.45926272,0.00023059,2]
[356799087,1743220026557,-500.0,0.00023059,2]
[356799088,1743220026581,-607.45926272,0.00023059,2]
[356799089,1743220026602,-500.0,0.00023059,2]
[356799090,1743220026625,-607.45926272,0.00023059,2]
[356799091,1743220026646,-500.0,0.00023059,2]
[356799092,1743220026669,-607.45926272,0.00023059,2]
[356799093,1743220026689,-500.0,0.00023059,2]
[356799094,1743220026712,-607.45926272,0.00023059,2]
[356799095,1743220026734,-500.0,0.00023059,2]
[356799096,1743220026759,-607.45926272,0.00023059,2]
[356799097,1743220026785,-607.45926272,0.00023059,2]
[356799098,1743220026807,-500.0,0.00023059,2]
[356799099,1743220026830,-607.45926272,0.00023059,2]
[356799100,1743220026853,-607.45926272,0.00023059,2]
[356799101,1743220026876,-500.0,0.00023059,2]
[356799102,1743220026899,-607.45926272,0.00023059,2]
[356799103,1743220026922,-607.45926272,0.00023059,2]
[356799104,1743220026945,-607.45926272,0.00023059,2]
[356799105,1743220026969,-607.45926272,0.00023059,2]
[356799106,1743220026993,-607.45926272,0.00023059,2]
[356799107,1743220027016,-607.45926272,0.00023059,2]
[356799108,1743220027040,-607.45926272,0.00023059,2]
[356799109,1743220027065,-607.45926272,0.00023059,2]
[356799110,1743220027089,-607.45926272,0.00023059,2]
[356799111,1743220027114,-607.45926272,0.00023059,2]
[356799112,1743220027137,-607.45926272,0.00023059,2]
[356799113,1743220027160,-607.45926272,0.00023059,2]
[356799114,1743220027183,-607.45926272,0.00023059,2]
[356799115,1743220027211,-607.45926272,0.00023059,2]
[356799116,1743220027234,-607.45926272,0.00023059,2]
[356799117,1743220027259,-607.45926272,0.00023059,2]
[356799118,1743220027282,-607.45926272,0.00023059,2]
[356799119,1743220027306,-607.45926272,0.00023059,2]
[356799120,1743220027330,-607.45926272,0.00023059,2]
[356799121,1743220027354,-607.45926272,0.00023059,2]
[356799122,1743220027380,-1949.83160015,0.00023059,2]
[356799123,1743220027404,-1949.83160015,0.00023059,2]
[356799124,1743220027428,-1949.83160015,0.00023059,2]
[356799125,1743220027452,-674.93590733,0.00023059,2]
[356799126,1743220038150,-263.65,0.0002305,3]
[356799127,1743220038177,-1274.89569282,0.00023059,2]
[356799128,1743220038202,-1949.83160015,0.00023059,2]
[356799129,1743220038231,-224.39732652,0.00023059,2]
[356799130,1743220042076,-791.0,0.0002305,3]
[356799131,1743220042102,-1725.43427363,0.00023059,2]
[356799132,1743220042127,-1949.83160015,0.00023059,2]
[356799133,1743220042154,-1949.83160015,0.00023059,2]
[356799134,1743220042180,-1949.83160015,0.00023059,2]
[356799135,1743220042204,-1949.83160015,0.00023059,2]
[356799136,1743220042233,-637.47807304,0.00023059,2]
[356799137,1743220043092,-1312.35352711,0.00023059,2]
[356799138,1743220043117,-1949.83160015,0.00023059,2]
[356799139,1743220043142,-1949.83160015,0.00023059,2]
[356799140,1743220043166,-1949.83160015,0.00023059,2]
[356799141,1743220043189,-1949.83160015,0.00023059,2]
[356799142,1743220043216,-1949.83160015,0.00023059,2]
[356799143,1743220043239,-1949.83160015,0.00023059,2]
[356799144,1743220043264,-1949.83160015,0.00023059,2]
[356799145,1743220043287,-1949.83160015,0.00023059,2]
[356799146,1743220043311,-908.46643544,0.00023059,2]
[356799147,1743220048092,-1891.81160707,0.00022959,2]
[356799148,1743220053096,-305.87177427,0.00022959,2]
[356799149,1743220053122,-214.57693221,0.00023059,2]
[356799150,1743220102551,-344.26385252,0.00015,2]
[356799151,1743220147118,-175.73614748,0.00015,2]
[356799152,1743220147140,-1337.3171554,0.00021901,2]
[356799153,1743220147161,-1014.697662,0.00022072,2]
[356799154,1743220147183,-314.9236411,0.00022421,2]
[356799155,1743220147205,-527.3,0.00023052,3]
[356799156,1743220147227,-300.0,0.00023057,2]
[356799157,1743220147252,-50000.0,0.00023058,2]
[356799158,1743220147275,-500.0,0.00023058,2]
[356799159,1743220147300,-505.75073742,0.00023058,2]
[356799160,1743220147322,-226.85496866,0.00023058,2]
[356799161,1743220147344,-500.0,0.00023058,2]
[356799162,1743220147368,-505.75073742,0.00023058,2]
[356799163,1743220147390,-192.01218071,0.00023058,2]
[356799164,1743220147414,-505.75073742,0.00023058,2]
[356799165,1743220147438,-505.75073742,0.00023058,2]
[356799166,1743220147461,-505.75073742,0.00023058,2]
[356799167,1743220147483,-505.75073742,0.00023058,2]
[356799168,1743220147507,-505.75073742,0.00023058,2]
[356799169,1743220147531,-505.75073742,0.00023058,2]
[356799170,1743220147554,-505.75073742,0.00023058,2]
[356799171,1743220147579,-505.75073742,0.00023058,2]
[356799172,1743220147603,-505.75073742,0.00023058,2]
[356799173,1743220147626,-505.75073742,0.00023058,2]
[356799174,1743220147650,-505.75073742,0.00023058,2]
[356799175,1743220147673,-505.75073742,0.00023058,2]
[356799176,1743220147697,-505.75073742,0.00023058,2]
[356799177,1743220147721,-505.75073742,0.00023058,2]
[356799178,1743220147745,-505.75073742,0.00023058,2]
[356799179,1743220147770,-505.75073742,0.00023058,2]
[356799180,1743220147794,-505.75073742,0.00023058,2]
[356799181,1743220147818,-505.75073742,0.00023058,2]
[356799182,1743220147842,-505.75073742,0.00023058,2]
[356799183,1743220147866,-505.75073742,0.00023058,2]
[356799184,1743220147889,-505.75073742,0.00023058,2]
[356799185,1743220147914,-505.75073742,0.00023058,2]
[356799186,1743220147940,-505.75073742,0.00023058,2]
[356799187,1743220147964,-505.75073742,0.00023058,2]
[356799188,1743220147988,-505.75073742,0.00023058,2]
[356799189,1743220148011,-505.75073742,0.00023058,2]
[356799190,1743220148034,-505.75073742,0.00023058,2]
[356799191,1743220148059,-505.75073742,0.00023058,2]
[356799192,1743220148083,-505.75073742,0.00023058,2]
[356799193,1743220148107,-505.75073742,0.00023058,2]
[356799194,1743220148131,-505.75073742,0.00023058,2]
[356799195,1743220148156,-505.75073742,0.00023058,2]
[356799196,1743220148180,-505.75073742,0.00023058,2]
[356799197,1743220148204,-505.75073742,0.00023058,2]
[356799198,1743220148228,-505.75073742,0.00023058,2]
[356799199,1743220148255,-505.75073742,0.00023058,2]
[356799200,1743220148279,-505.75073742,0.00023058,2]
[356799201,1743220148304,-505.75073742,0.00023058,2]
[356799202,1743220148558,-505.75073742,0.00023058,2]
[356799203,1743220148584,-505.75073742,0.00023058,2]
[356799204,1743220148610,-505.75073742,0.00023058,2]
[356799205,1743220148634,-505.75073742,0.00023058,2]
[356799206,1743220148657,-505.75073742,0.00023058,2]
[356799207,1743220148680,-505.75073742,0.00023058,2]
[356799208,1743220148704,-505.75073742,0.00023058,2]
[356799209,1743220148727,-505.75073742,0.00023058,2]
[356799210,1743220148752,-505.75073742,0.00023058,2]
[356799211,1743220148775,-514.93099669,0.00023058,2]
[356799212,1743220148799,-514.93099669,0.00023058,2]
[356799213,1743220148821,-514.93099669,0.00023058,2]
[356799214,1743220148845,-514.93099669,0.00023058,2]
[356799215,1743220148868,-514.93099669,0.00023058,2]
[356799216,1743220148893,-514.93099669,0.00023058,2]
[356799217,1743220148917,-514.93099669,0.00023058,2]
[356799218,1743220148940,-514.93099669,0.00023058,2]
[356799219,1743220148963,-514.93099669,0.00023058,2]
[356799220,1743220148987,-514.93099669,0.00023058,2]
[356799221,1743220149011,-514.93099669,0.00023058,2]
[356799222,1743220149036,-514.93099669,0.00023058,2]
[356799223,1743220149060,-514.93099669,0.00023058,2]
[356799224,1743220149083,-514.93099669,0.00023058,2]
[356799225,1743220149107,-514.93099669,0.00023058,2]
[356799226,1743220149130,-514.93099669,0.00023058,2]
[356799227,1743220149154,-514.93099669,0.00023058,2]
[356799228,1743220149177,-514.93099669,0.00023058,2]
[356799229,1743220149200,-514.93099669,0.00023058,2]
[356799230,1743220149224,-514.93099669,0.00023058,2]
[356799231,1743220149253,-514.93099669,0.00023058,2]
[356799232,1743220149277,-514.93099669,0.00023058,2]
[356799233,1743220149304,-514.93099669,0.00023058,2]
[356799234,1743220149328,-514.93099669,0.00023058,2]
[356799235,1743220149351,-514.93099669,0.00023058,2]
[356799236,1743220149376,-514.93099669,0.00023058,2]
[356799237,1743220149400,-514.93099669,0.00023058,2]
[356799238,1743220149424,-514.93099669,0.00023058,2]
[356799239,1743220149449,-514.93099669,0.00023058,2]
[356799240,1743220149474,-514.93099669,0.00023058,2]
[356799241,1743220149499,-514.93099669,0.00023058,2]
[356799242,1743220149523,-160.03,0.0002306,2]
[356799243,1743220149545,-24900.0,0.00023062,2]
[356799244,1743220149567,-999.488062,0.00023108,2]
[356799245,1743220149589,-2048.52327367,0.0002321,2]
[356799246,1743220159093,-138.45122603,0.0002321,2]
[356799247,1743220159117,-286.1189795,0.00023356,2]
[356799248,1743220159140,-3433.3945215,0.00023478,2]
[356799249,1743220159161,-163.1978678,0.00023733,2]
[356799250,1743220159183,-250.0,0.00023766,2]
[356799251,1743220159206,-2197.68338128,0.00023853,2]
[356799252,1743220159227,-2928.26077645,0.0002399,2]
[356799253,1743220159253,-468.99605692,0.00024069,2]
[356799254,1743220159275,-1136.68846929,0.00024071,2]
[356799255,1743220159309,-322.14776553,0.00024071,2]
[356799256,1743220159332,-211.62783493,0.00024304,2]
[356799257,1743220159353,-152.0,0.00024423,2]
[356799258,1743220159375,-582.17999572,0.000245,2]
[356799259,1743220159397,-500.0,0.000245,2]
[356799260,1743220159420,-500.0,0.000245,2]
[356799261,1743220159444,-222.71186096,0.00024528,2]
[356799262,1743220159465,-151.38890589,0.00024607,2]
[356799263,1743220160506,500.0,0.00023058,2]
[356799264,1743220160562,233.24972607,0.00023058,2]
[356799265,1743220160593,500.0,0.00023058,2]
[356799266,1743220160623,500.0,0.00023058,2]
[356799267,1743220160671,500.0,0.00023058,2]
[356799268,1743220160730,500.0,0.00023058,2]
[356799269,1743220160770,500.0,0.00023058,2]
[356799270,1743220160855,500.0,0.00023058,2]
[356799273,1743220163539,500.0,0.000245,2]
[356799274,1743220171254,250.0,0.00023747,2]
[356799275,1743220173849,500.0,0.000245,2]
[356799276,1743220186334,500.0,0.000245,2]
[356799277,1743220200038,500.0,0.0002345,2]
[356799278,1743220205930,300.0,0.00023046,2]
[356799279,1743220206621,311.1,0.00024415,2]
[356799280,1743220210895,600.0,0.00023046,2]
[356799281,1743220211529,622.2,0.00023101,2]
[356799282,1743220212289,645.2214,0.00023156,2]
[356799283,1743220213269,160.0,0.0002,3]
[356799284,1743220213506,669.0945918,0.00023211,2]
[356799285,1743220214128,160.0,0.0002,3]
[356799286,1743220214222,830.70704031,0.00023266,2]
[356799330,1743220232648,-553.01883431,0.00023266,2]
[356799331,1743220232658,-317.37949,0.00024641,2]
[356799332,1743220232667,-151.0,0.00024642,2]
[356799333,1743220232676,-300.0,0.00024656,2]
[356799334,1743220232685,-500.0,0.00024657,2]
[356799335,1743220232694,-158.54309388,0.00024657,2]
[356799336,1743220232706,-341.45690612,0.00024657,2]
[356799337,1743220232715,-500.0,0.00024657,2]
[356799338,1743220232725,-500.0,0.00024657,2]
[356799339,1743220232734,-500.0,0.00024657,2]
[356799340,1743220232743,-500.0,0.00024657,2]
[356799341,1743220232752,-500.0,0.00024657,2]
[356799342,1743220232761,-229.91611394,0.00024657,2]
[356799343,1743220232771,-500.0,0.00024657,2]
[356799344,1743220232780,-500.0,0.00024657,2]
[356799345,1743220232790,-500.0,0.00024657,2]
[356799346,1743220232799,-500.0,0.00024657,2]
[356799347,1743220232812,-579.76405731,0.00024657,2]
[356799348,1743220232830,-500.0,0.00024657,2]
[356799349,1743220232847,-500.0,0.00024657,2]
[356799350,1743220232861,-555.07247399,0.00024657,2]
[356799351,1743220232877,-500.0,0.00024657,2]
[356799352,1743220232893,-500.0,0.00024657,2]
[356799353,1743220232910,-212.24232566,0.00024657,2]
[356799354,1743220232925,-20.81173734,0.00024657,2]
[356799355,1743220232954,-479.18826266,0.00024657,2]
[356799356,1743220232968,-244.84883947,0.00024657,2]
[356799357,1743220232983,-500.0,0.00024657,2]
[356799358,1743220232998,-500.0,0.00024657,2]
[356799359,1743220233014,-500.0,0.00024657,2]
[356799360,1743220233029,-543.56146338,0.00024657,2]
[356799361,1743220233040,-500.0,0.00024657,2]
[356799362,1743220233054,-500.0,0.00024657,2]
[356799363,1743220233068,-500.82510398,0.00024657,2]
[356799364,1743220233085,-500.86096408,0.00024657,2]
[356799365,1743220233101,-500.37678433,0.00024657,2]
[356799366,1743220233118,-500.0,0.00024657,2]
[356799367,1743220233135,-512.82494649,0.00024657,2]
[356799368,1743220233149,-500.67094211,0.00024657,2]
[356799369,1743220233161,-500.0,0.00024657,2]
[356799370,1743220233174,-500.0,0.00024657,2]
[356799371,1743220233190,-500.95718815,0.00024657,2]
[356799372,1743220233208,-500.0,0.00024657,2]
[356799373,1743220233220,-500.0,0.00024657,2]
[356799374,1743220233234,-500.0,0.00024657,2]
[356799375,1743220233250,-500.0,0.00024657,2]
[356799376,1743220233264,-500.0,0.00024657,2]
[356799377,1743220233282,-500.0,0.00024657,2]
[356799378,1743220233300,-500.0,0.00024657,2]
[356799379,1743220233315,-500.0,0.00024657,2]
[356799380,1743220233329,-500.0,0.00024657,2]
[356799381,1743220233344,-500.0,0.00024657,2]
[356799382,1743220233358,-500.0,0.00024657,2]
[356799383,1743220233373,-500.0,0.00024657,2]
[356799384,1743220233387,-500.0,0.00024657,2]
[356799385,1743220233402,-500.0,0.00024657,2]
[356799386,1743220233416,-500.0,0.00024657,2]
[356799387,1743220233430,-500.0,0.00024657,2]
[356799388,1743220233445,-500.0,0.00024657,2]
[356799389,1743220233459,-738.19,0.00024657,2]
[356799390,1743220233474,-577.67,0.00024657,2]
[356799391,1743220233488,-500.0,0.00024657,2]
[356799392,1743220233501,-615.45,0.00024657,2]
[356799393,1743220233515,-500.0,0.00024657,2]
[356799394,1743220233528,-546.26755032,0.00024657,2]
[356799395,1743220233543,-726.29,0.00024657,2]
[356799396,1743220233556,-500.0,0.00024657,2]
[356799397,1743220233570,-500.0,0.00024657,2]
[356799398,1743220233583,-500.0,0.00024657,2]
[356799399,1743220233596,-500.0,0.00024657,2]
[356799400,1743220233609,-528.30616785,0.00024657,2]
[356799401,1743220233623,-500.0,0.00024657,2]
[356799402,1743220233637,-500.0,0.00024657,2]
[356799403,1743220233651,-598.87,0.00024657,2]
[356799404,1743220233665,-545.96441583,0.00024657,2]
[356799405,1743220233679,-500.64,0.00024657,2]
[356799406,1743220233693,-500.0,0.00024657,2]
[356799407,1743220233707,-546.8433812,0.00024657,2]
[356799408,1743220233721,-706.82,0.00024657,2]
[356799409,1743220233735,-505.43888788,0.00024657,2]
[356799410,1743220233749,-547.44974093,0.00024657,2]
[356799411,1743220233763,-500.0,0.00024657,2]
[356799412,1743220233776,-500.0,0.00024657,2]
[356799413,1743220233791,-500.0,0.00024657,2]
[356799414,1743220233804,-500.0,0.00024657,2]
[356799415,1743220233817,-504.28251484,0.00024657,2]
[356799416,1743220233830,-500.0,0.00024657,2]
[356799417,1743220233844,-500.0,0.00024657,2]
[356799418,1743220233857,-500.0,0.00024657,2]
[356799419,1743220233870,-503.91492734,0.00024657,2]
[356799420,1743220233884,-500.0,0.00024657,2]
[356799421,1743220233898,-500.0,0.00024657,2]
[356799422,1743220233911,-500.0,0.00024657,2]
[356799423,1743220233925,-500.0,0.00024657,2]
[356799424,1743220233939,-500.0,0.00024657,2]
[356799425,1743220233952,-500.0,0.00024657,2]
[356799426,1743220233966,-504.85411389,0.00024657,2]
[356799427,1743220233981,-488.76010431,0.00024657,2]
[356799428,1743220233995,-664.35,0.00024657,2]
[356799429,1743220234010,-973.61,0.00024657,2]
[356799430,1743220234024,-162.50353126,0.00024657,2]
[356799431,1743220234037,-541.81165207,0.00024657,2]
[356799432,1743220234051,-500.0,0.00024657,2]
[356799433,1743220234065,-500.0,0.00024657,2]
[356799434,1743220234080,-500.0,0.00024657,2]
[356799435,1743220234094,-500.0,0.00024657,2]
[356799436,1743220234108,-508.91477972,0.00024657,2]
[356799437,1743220234122,-342.80665046,0.00024657,2]
[356799438,1743220234136,-500.0,0.00024657,2]
[356799439,1743220234149,-522.19859727,0.00024657,2]
[356799440,1743220234163,-500.0,0.00024657,2]
[356799441,1743220234176,-500.0,0.00024657,2]
[356799442,1743220234189,-341.91919614,0.00024657,2]
[356799443,1743220234204,-500.0,0.00024657,2]
[356799444,1743220234217,-500.0,0.00024657,2]
[356799445,1743220234232,-1352.47,0.00024657,2]
[356799446,1743220234246,-500.0,0.00024657,2]
[356799447,1743220234259,-500.0,0.00024657,2]
[356799448,1743220234274,-504.32383796,0.00024657,2]
[356799449,1743220234288,-500.0,0.00024657,2]
[356799450,1743220234301,-500.0,0.00024657,2]
[356799451,1743220234316,-542.97269506,0.00024657,2]
[356799452,1743220234330,-500.0,0.00024657,2]
[356799453,1743220234345,-500.0,0.00024657,2]
[356799454,1743220234359,-500.0,0.00024657,2]
[356799455,1743220234373,-500.0,0.00024657,2]
[356799456,1743220234387,-500.0,0.00024657,2]
[356799457,1743220234401,-527.15487996,0.00024657,2]
[356799458,1743220234416,-563.04,0.00024657,2]
[356799459,1743220234430,-906.85,0.00024657,2]
[356799460,1743220234443,-504.10271983,0.00024657,2]
[356799461,1743220234453,-500.86,0.00024657,2]